[Event "WYCC 2018 G14"]
[Site "Halkidiki"]
[Date "2018.10.24"]
[Round "6"]
[White "Lomaia, Diana"]
[Black "Dimitrijevic, Andjela"]
[Result "1-0"]
[ECO "B67"]
[WhiteElo "1876"]
[BlackElo "1744"]
[Annotator "NA"]
[PlyCount "113"]
[EventDate "2018.10.20"]
[EventType "swiss"]
[EventCountry "GRE"]
[SourceTitle "playchess.com"]
[Source "ChessBase"]
[SourceQuality "1"]
[TimeControl "40/5400+30:1800+30"]

1. e4 {[%emt 0:00:00]} c5 {[%emt 0:00:00]} 2. Nf3 {[%emt 0:00:09]} d6 {[%emt 0:00:00]} 3. d4 {[%emt 0:00:00]} cxd4 {[%emt 0:00:20]} 4. Nxd4 {[%emt 0:00:00]} Nf6 {[%emt 0:00:27]} 5. Nc3 {[%emt 0:00:01]} Nc6 {[%emt 0:00:32]} 6. Bg5 {[%emt 0:01:19]} e6 {[%emt 0:01:02]} 7. Qd2 {[%emt 0:00:59]} a6 {[%emt 0:01:14]} 8. O-O-O {[%emt 0:01:29]} Bd7 {[%emt 0:01:42]} 9. f3 {[%emt 0:04:58]} h6 {[%emt 0:20:13]} 10. Be3 {[%emt 0:03:03]} b5 {[%emt 0:10:21]} 11. g4 {[%emt 0:06:58]} Qa5 {[%emt 0:23:06]} 12. Nb3 {[%emt 0:11:09]} Qc7 {[%emt 0:01:47]} 13. Qf2 {[%emt 0:08:36]} Rb8 {[%emt 0:05:53]} 14. h4 {[%emt 0:08:43]} b4 {[%emt 0:10:22]} 15. Ne2 {[%emt 0:02:36]} a5 {[%emt 0:01:14]} 16. Nbd4 {[%emt 0:03:38]} Ne5 {[%emt 0:04:03]} 17. Ng3 {[%emt 0:03:43]} d5 {[%emt 0:07:12]} 18. g5 {[%emt 0:05:15]} hxg5 {[%emt 0:06:15]} 19. hxg5 {[%emt 0:00:17]} Rxh1 {[%emt 0:00:12]} 20. Nxh1 {[%emt 0:00:04]} Ng8 {[%emt 0:01:27]} 21. exd5 {[%emt 0:02:52]} exd5 {[%emt 0:00:59]} 22. f4 {[%emt 0:02:52]} Ng4 {[%emt 0:01:35]} 23. Qe2 {[%emt 0:00:22]} Nxe3 {[%emt 0:00:45]} 24. Qxe3+ {[%emt 0:00:02]} Ne7 {[%emt 0:00:34]} 25. f5 {[%emt 0:07:33]} Kd8 {[%emt 0:00:26]} 26. Ng3 {[%emt 0:04:56]} Rc8 {[%emt 0:00:24]} 27. Rd2 {[%emt 0:01:38]} Rb8 {[%emt 0:00:39]} 28. Rh2 {[%emt 0:03:01]} Qd6 {[%emt 0:00:39]} 29. Rf2 {[%emt 0:05:41]} Rc8 {[%emt 0:00:27]} 30. f6 {[%emt 0:01:30]} Nc6 {[%emt 0:00:27]} 31. Ngf5 {[%emt 0:06:44]} Bxf5 {[%emt 0:00:21]} 32. Nxf5 {[%emt 0:00:40]} d4 {[%emt 0:00:32]} 33. Qe2 {[%emt 0:01:39]} Qd5 {[%emt 0:00:30]} 34. Bg2 {[%emt 0:00:53]} Qc5 {[%emt 0:00:34]} 35. Rf4 {[%emt 0:01:49]} g6 {[%emt 0:00:29]} 36. Bxc6 {[%emt 0:00:30]} Rxc6 {[%emt 0:00:33]} 37. Nxd4 {[%emt 0:01:02]} Rd6 {[%emt 0:00:33]} 38. Nf3 {[%emt 0:00:24]} Qd5 {[%emt 0:00:30]} 39. Rc4 {[%emt 0:01:26]} Qf5 {[%emt 0:00:31]} 40. Re4 {[%emt 0:00:00]} Re6 {[%emt 0:00:00]} 41. Rxe6 {[%emt 0:03:12]} fxe6 {[%emt 0:01:42]} 42. Qd3+ {[%emt 0:05:34]} Ke8 {[%emt 0:06:04]} 43. Qxf5 {[%emt 0:08:03]} gxf5 {[%emt 0:02:20]} 44. g6 {[%emt 0:00:39]} Bh6+ {[%emt 0:05:26]} 45. Kd1 {[%emt 0:00:07]} Bf4 {[%emt 0:00:28]} 46. Nd4 {[%emt 0:02:07]} Be5 {[%emt 0:11:38]} 47. f7+ {[%emt 0:00:18]} Kf8 {[%emt 0:00:06]} 48. Nxe6+ {[%emt 0:00:05]} Ke7 {[%emt 0:00:06]} 49. f8=Q+ {[%emt 0:00:11]} Kxe6 {[%emt 0:00:06]} 50. g7 {[%emt 0:00:12]} Bxg7 {[%emt 0:00:09]} 51. Qxg7 {[%emt 0:00:05]} f4 {[%emt 0:00:13]} 52. Ke2 {[%emt 0:00:13]} Kf5 {[%emt 0:00:09]} 53. Kf3 {[%emt 0:00:08]} a4 {[%emt 0:00:14]} 54. Qg4+ {[%emt 0:00:05]} Kf6 {[%emt 0:00:04]} 55. Qxf4+ {[%emt 0:00:05]} Ke6 {[%emt 0:00:11]} 56. Qxb4 {[%emt 0:00:27]} Kf6 {[%emt 0:00:15]} 57. Qe4 {[%emt 0:00:10]} 1-0

[Event "WYCC 2018 G14"]
[Site "Halkidiki"]
[Date "2018.10.24"]
[Round "6"]
[White "Kasaeva, Sofiia"]
[Black "Gregurkova, Nikola"]
[Result "1-0"]
[ECO "B01"]
[WhiteElo "1874"]
[BlackElo "1627"]
[Annotator "NA"]
[PlyCount "91"]
[EventDate "2018.10.20"]
[EventType "swiss"]
[EventCountry "GRE"]
[SourceTitle "playchess.com"]
[Source "ChessBase"]
[SourceQuality "1"]
[TimeControl "40/5400+30:1800+30"]

1. e4 {[%emt 0:00:00]} d5 {[%emt 0:00:00]} 2. exd5 {[%emt 0:00:00]} Qxd5 {[%emt 0:00:00]} 3. Nc3 {[%emt 0:00:00]} Qa5 {[%emt 0:00:24]} 4. d4 {[%emt 0:00:03]} Nf6 {[%emt 0:00:34]} 5. Nf3 {[%emt 0:00:15]} Bf5 {[%emt 0:01:13]} 6. Bd2 {[%emt 0:12:13]} e6 {[%emt 0:03:01]} 7. Be2 {[%emt 0:12:14]} Be7 {[%emt 0:09:31]} 8. O-O {[%emt 0:03:37]} c6 {[%emt 0:08:52]} 9. Ne4 {[%emt 0:06:13]} Qc7 {[%emt 0:05:45]} 10. Ng3 {[%emt 0:01:14]} Bg6 {[%emt 0:06:48]} 11. c4 {[%emt 0:08:35]} Nbd7 {[%emt 0:05:27]} 12. b4 {[%emt 0:01:36]} O-O {[%emt 0:05:36]} 13. Rc1 {[%emt 0:03:53]} b6 {[%emt 0:08:00]} 14. a4 {[%emt 0:05:39]} c5 {[%emt 0:04:20]} 15. dxc5 {[%emt 0:01:38]} bxc5 {[%emt 0:00:58]} 16. b5 {[%emt 0:01:34]} Ne4 {[%emt 0:07:12]} 17. Nxe4 {[%emt 0:01:14]} Bxe4 {[%emt 0:00:11]} 18. Bc3 {[%emt 0:07:51]} Bf6 {[%emt 0:02:58]} 19. Bxf6 {[%emt 0:01:14]} Nxf6 {[%emt 0:00:10]} 20. Ng5 {[%emt 0:02:36]} Rfd8 {[%emt 0:03:30]} 21. Qb3 {[%emt 0:04:47]} Bb7 {[%emt 0:02:47]} 22. Qc3 {[%emt 0:08:43]} h6 {[%emt 0:02:32]} 23. Nf3 {[%emt 0:00:14]} a6 {[%emt 0:06:58]} 24. Ra1 {[%emt 0:02:34]} Ne4 {[%emt 0:02:44]} 25. Qc2 {[%emt 0:00:59]} g5 {[%emt 0:02:10]} 26. Bd3 {[%emt 0:03:33]} Nf6 {[%emt 0:04:29]} 27. Qe2 {[%emt 0:03:37]} Qf4 {[%emt 0:03:44]} 28. Ne5 {[%emt 0:02:16]} Be4 {[%emt 0:02:51]} 29. Bxe4 {[%emt 0:01:27]} Nxe4 {[%emt 0:00:17]} 30. Nd3 {[%emt 0:01:08]} Qf5 {[%emt 0:00:50]} 31. Ra3 {[%emt 0:02:05]} Rd4 {[%emt 0:00:47]} 32. f3 {[%emt 0:01:23]} Nd6 {[%emt 0:00:32]} 33. Ne5 {[%emt 0:00:16]} axb5 {[%emt 0:00:33]} 34. Nc6 {[%emt 0:00:25]} Qf6 {[%emt 0:00:32]} 35. Nxd4 {[%emt 0:00:17]} Qxd4+ {[%emt 0:00:12]} 36. Kh1 {[%emt 0:00:35]} Qxc4 {[%emt 0:00:38]} 37. Qf2 {[%emt 0:01:01]} Rxa4 {[%emt 0:00:33]} 38. Rxa4 {[%emt 0:00:15]} bxa4 {[%emt 0:00:09]} 39. Rd1 {[%emt 0:00:32]} Nf5 {[%emt 0:00:48]} 40. Qb2 {[%emt 0:00:00]} Qb3 {[%emt 0:00:00]} 41. Rd8+ {[%emt 0:05:50]} Kh7 {[%emt 0:01:17]} 42. Qh8+ {[%emt 0:10:32]} Kg6 {[%emt 0:00:17]} 43. Rg8+ {[%emt 0:07:16]} Kh5 {[%emt 0:02:41]} 44. Qa1 {[%emt 0:01:24]} Kh4 {[%emt 0:08:19]} 45. Qe1+ {[%emt 0:00:16]} Kh5 {[%emt 0:00:59]} 46. g4# {[%emt 0:00:06]} 1-0

[Event "WYCC 2018 G14"]
[Site "Halkidiki"]
[Date "2018.10.24"]
[Round "6"]
[White "Behzad Nazif, Parva"]
[Black "Galvan Cipriani, Viviana"]
[Result "1-0"]
[ECO "A52"]
[WhiteElo "1859"]
[BlackElo "2109"]
[Annotator "NA"]
[PlyCount "79"]
[EventDate "2018.10.20"]
[EventType "swiss"]
[EventCountry "GRE"]
[SourceTitle "playchess.com"]
[Source "ChessBase"]
[SourceQuality "1"]
[TimeControl "40/5400+30:1800+30"]

1. d4 {[%emt 0:00:00]} Nf6 {[%emt 0:00:00]} 2. c4 {[%emt 0:00:00]} e5 {[%emt 0:00:13]} 3. dxe5 {[%emt 0:00:00]} Ng4 {[%emt 0:00:05]} 4. e3 {[%emt 0:00:05]} Nxe5 {[%emt 0:02:54]} 5. Nc3 {[%emt 0:00:20]} Nbc6 {[%emt 0:03:47]} 6. f4 {[%emt 0:00:47]} Ng6 {[%emt 0:01:28]} 7. Bd3 {[%emt 0:00:34]} Bc5 {[%emt 0:09:27]} 8. Qh5 {[%emt 0:08:58]} d6 {[%emt 0:06:57]} 9. Nf3 {[%emt 0:03:18]} Nce7 {[%emt 0:12:52]} 10. Ng5 {[%emt 0:17:53]} h6 {[%emt 0:17:28]} 11. Nge4 {[%emt 0:04:02]} Bb6 {[%emt 0:05:00]} 12. O-O {[%emt 0:03:06]} f5 {[%emt 0:03:38]} 13. Ng3 {[%emt 0:06:09]} O-O {[%emt 0:01:57]} 14. Kh1 $14 {[%emt 0:01:08]} Be6 {[%emt 0:12:27]} 15. e4 {[%emt 0:03:21]} Bf7 {[%emt 0:08:09]} 16. Qe2 {[%emt 0:09:19]} Be6 {[%emt 0:02:03]} 17. exf5 {[%emt 0:00:41]} Bxf5 {[%emt 0:00:02]} 18. Nxf5 {[%emt 0:00:24]} Nxf5 {[%emt 0:00:13]} 19. Qe6+ {[%emt 0:00:43]} Rf7 {[%emt 0:01:41]} 20. Qxg6 {[%emt 0:00:58]} Rf6 {[%emt 0:00:13]} 21. Qg4 {[%emt 0:00:22]} Ne7 {[%emt 0:04:09]} 22. f5 {[%emt 0:00:39]} Nc6 {[%emt 0:01:02]} 23. Nd5 {[%emt 0:01:44]} Rf7 {[%emt 0:00:05]} 24. Bc2 {[%emt 0:01:38]} Ne5 {[%emt 0:01:34]} 25. Qe4 {[%emt 0:01:34]} c6 {[%emt 0:01:16]} 26. Nc3 {[%emt 0:00:38]} Qf6 {[%emt 0:01:06]} 27. Qf4 {[%emt 0:00:45]} Raf8 {[%emt 0:01:04]} 28. Bd2 {[%emt 0:04:34]} Bc7 {[%emt 0:02:18]} 29. Be1 {[%emt 0:04:55]} Qd8 {[%emt 0:00:40]} 30. Qe4 {[%emt 0:02:58]} Rf6 {[%emt 0:00:35]} 31. Bh4 {[%emt 0:00:33]} g5 {[%emt 0:00:12]} 32. Bg3 {[%emt 0:00:04]} Re8 {[%emt 0:00:12]} 33. Bxe5 {[%emt 0:00:40]} Rxe5 {[%emt 0:00:28]} 34. Qg4 {[%emt 0:00:18]} Kh7 {[%emt 0:00:35]} 35. Ne4 {[%emt 0:00:20]} Rf8 {[%emt 0:00:05]} 36. Qh5 {[%emt 0:00:28]} d5 {[%emt 0:01:30]} 37. Qg6+ {[%emt 0:00:13]} Kh8 {[%emt 0:00:26]} 38. Qxh6+ {[%emt 0:00:05]} Kg8 {[%emt 0:00:05]} 39. Nxg5 {[%emt 0:00:15]} Re7 {[%emt 0:00:58]} 40. f6 {[%emt 0:00:00]} 1-0

[Event "WYCC 2018 G14"]
[Site "Halkidiki"]
[Date "2018.10.24"]
[Round "6"]
[White "Velea, Anne-Marie"]
[Black "Yedigaryan, Asya"]
[Result "0-1"]
[ECO "B31"]
[WhiteElo "1859"]
[BlackElo "1726"]
[Annotator "NA"]
[PlyCount "66"]
[EventDate "2018.10.20"]
[EventType "swiss"]
[EventCountry "GRE"]
[SourceTitle "playchess.com"]
[Source "ChessBase"]
[SourceQuality "1"]
[TimeControl "40/5400+30:1800+30"]

1. e4 {[%emt 0:00:00]} c5 {[%emt 0:00:00]} 2. Nf3 {[%emt 0:00:00]} Nc6 {[%emt 0:00:00]} 3. Bb5 {[%emt 0:00:00]} g6 {[%emt 0:00:00]} 4. c3 {[%emt 0:00:09]} Nf6 {[%emt 0:00:00]} 5. Qe2 {[%emt 0:00:07]} Bg7 {[%emt 0:00:05]} 6. d4 {[%emt 0:00:08]} cxd4 {[%emt 0:00:09]} 7. cxd4 {[%emt 0:00:11]} O-O {[%emt 0:00:34]} 8. Nc3 {[%emt 0:07:58]} d5 {[%emt 0:03:29]} 9. e5 {[%emt 0:01:28]} Ne4 {[%emt 0:00:07]} 10. O-O {[%emt 0:06:30]} Nxc3 {[%emt 0:00:21]} 11. bxc3 {[%emt 0:00:07]} Na5 {[%emt 0:01:34]} 12. Bf4 {[%emt 0:05:09]} a6 {[%emt 0:06:53]} 13. Bd3 {[%emt 0:00:10]} Bd7 {[%emt 0:01:02]} 14. a4 {[%emt 0:08:18]} Rc8 {[%emt 0:00:44]} 15. Qb2 {[%emt 0:03:56]} Rc6 {[%emt 0:28:37]} 16. Nd2 {[%emt 0:08:20]} Rb6 {[%emt 0:05:43]} 17. Qa3 {[%emt 0:04:27]} Re8 {[%emt 0:03:00]} 18. Qc5 {[%emt 0:05:49]} Rc6 {[%emt 0:04:24]} 19. Qa3 {[%emt 0:07:25]} Qc8 {[%emt 0:01:25]} 20. Rfc1 {[%emt 0:03:36]} Bf5 {[%emt 0:08:24]} 21. Be2 {[%emt 0:02:34]} Bf8 {[%emt 0:01:01]} 22. Qa2 {[%emt 0:06:28]} Rxc3 {[%emt 0:04:35]} 23. Qb2 {[%emt 0:07:19]} Rc2 {[%emt 0:09:24]} 24. Rxc2 {[%emt 0:00:10]} Qxc2 {[%emt 0:00:05]} 25. Qb4 {[%emt 0:03:19]} Nc6 {[%emt 0:00:43]} 26. Qxb7 Nxd4 {[%emt 0:00:35]} 27. Bxa6 {[%emt 0:03:34]} Qc3 {[%emt 0:00:58]} 28. Re1 {[%emt 0:01:43]} Ne6 {[%emt 0:00:36]} 29. Bb5 {[%emt 0:08:06]} Rc8 {[%emt 0:03:17]} 30. Be3 {[%emt 0:06:17]} d4 {[%emt 0:00:19]} 31. Bxd4 {[%emt 0:01:37]} Qxd2 {[%emt 0:00:25]} 32. Rf1 {[%emt 0:00:33]} Nxd4 {[%emt 0:00:06]} 33. a5 {[%emt 0:00:14]} Qxa5 {[%emt 0:00:30]} 0-1

[Event "WYCC 2018 G14"]
[Site "Halkidiki"]
[Date "2018.10.24"]
[Round "6"]
[White "Tamrazyan, Gohar"]
[Black "Djordjevic, Nevena"]
[Result "1/2-1/2"]
[ECO "A04"]
[WhiteElo "1824"]
[BlackElo "1704"]
[Annotator "NA"]
[PlyCount "46"]
[EventDate "2018.10.20"]
[EventType "swiss"]
[EventCountry "GRE"]
[SourceTitle "playchess.com"]
[Source "ChessBase"]
[SourceQuality "1"]
[TimeControl "40/5400+30:1800+30"]

1. Nf3 {[%emt 0:00:00]} c5 {[%emt 0:00:00]} 2. c3 {[%emt 0:00:00]} d5 {[%emt 0:01:31]} 3. d4 {[%emt 0:00:00]} cxd4 {[%emt 0:04:53]} 4. cxd4 {[%emt 0:00:00]} Nc6 {[%emt 0:01:25]} 5. Nc3 {[%emt 0:00:13]} Bg4 {[%emt 0:04:23]} 6. Ne5 {[%emt 0:04:34]} Nxe5 {[%emt 0:01:34]} 7. dxe5 {[%emt 0:00:06]} d4 {[%emt 0:14:28]} 8. Qa4+ {[%emt 0:02:29]} Qd7 {[%emt 0:03:20]} 9. Nb5 {[%emt 0:01:36]} Rc8 {[%emt 0:03:25]} 10. Qxd4 {[%emt 0:01:18]} Qxb5 11. Qxg4 {[%emt 0:00:52]} e6 {[%emt 0:07:46]} 12. a3 {[%emt 0:08:48]} Qa5+ {[%emt 0:04:46]} 13. Bd2 {[%emt 0:05:56]} Qxe5 {[%emt 0:00:59]} 14. Qa4+ {[%emt 0:06:09]} b5 {[%emt 0:08:06]} 15. Qb3 {[%emt 0:00:52]} Nf6 {[%emt 0:10:34]} 16. e3 {[%emt 0:02:03]} a6 {[%emt 0:05:53]} 17. a4 {[%emt 0:01:13]} Ne4 {[%emt 0:07:45]} 18. Bd3 {[%emt 0:10:40]} Nc5 {[%emt 0:06:17]} 19. Bxb5+ {[%emt 0:06:35]} axb5 {[%emt 0:00:16]} 20. Qxb5+ {[%emt 0:00:08]} Nd7 {[%emt 0:00:22]} 21. Qxe5 {[%emt 0:02:14]} Nxe5 {[%emt 0:00:05]} 22. Bc3 {[%emt 0:01:00]} f6 {[%emt 0:02:22]} 23. a5 {[%emt 0:01:24]} Bd6 {[%emt 0:02:34]} 1/2-1/2

[Event "WYCC 2018 G14"]
[Site "Halkidiki"]
[Date "2018.10.24"]
[Round "6"]
[White "Kouta, Antonia"]
[Black "Ruzic, Pia Marie"]
[Result "1-0"]
[ECO "C10"]
[WhiteElo "1812"]
[BlackElo "1691"]
[Annotator "NA"]
[PlyCount "89"]
[EventDate "2018.10.20"]
[EventType "swiss"]
[EventCountry "GRE"]
[SourceTitle "playchess.com"]
[Source "ChessBase"]
[SourceQuality "1"]
[TimeControl "40/5400+30:1800+30"]

1. e4 {[%emt 0:00:00]} e6 {[%emt 0:00:00]} 2. d4 {[%emt 0:00:00]} d5 {[%emt 0:00:00]} 3. Nd2 {[%emt 0:00:00]} dxe4 {[%emt 0:00:00]} 4. Nxe4 {[%emt 0:00:00]} Nd7 {[%emt 0:00:03]} 5. Bd3 {[%emt 0:00:24]} Ngf6 {[%emt 0:00:35]} 6. Qe2 {[%emt 0:00:33]} c5 {[%emt 0:04:08]} 7. Nxf6+ {[%emt 0:04:13]} Nxf6 {[%emt 0:00:42]} 8. dxc5 {[%emt 0:03:13]} Bxc5 {[%emt 0:00:41]} 9. Nf3 {[%emt 0:00:25]} O-O {[%emt 0:01:13]} 10. Bg5 {[%emt 0:02:05]} Be7 {[%emt 0:03:00]} 11. O-O-O {[%emt 0:04:12]} Qc7 {[%emt 0:01:35]} 12. Kb1 {[%emt 0:07:15]} a5 {[%emt 0:04:04]} 13. h4 a4 {[%emt 0:02:02]} 14. a3 {[%emt 0:16:41]} Bd7 {[%emt 0:17:07]} 15. Ne5 {[%emt 0:02:53]} Bc6 {[%emt 0:01:18]} 16. Rh3 {[%emt 0:05:51]} Ra5 {[%emt 0:10:16]} 17. Re1 {[%emt 0:10:55]} Nd5 {[%emt 0:09:04]} 18. Bd2 {[%emt 0:12:29]} Raa8 {[%emt 0:04:48]} 19. Rg3 {[%emt 0:01:00]} Kh8 {[%emt 0:02:05]} 20. Qh5 {[%emt 0:06:29]} Nf6 {[%emt 0:02:54]} 21. Qg5 {[%emt 0:10:02]} Ne8 {[%emt 0:01:01]} 22. Qe3 {[%emt 0:00:53]} Rb8 {[%emt 0:07:27]} 23. Qe2 {[%emt 0:04:52]} Nf6 {[%emt 0:05:12]} 24. Bc3 {[%emt 0:02:59]} b5 {[%emt 0:04:36]} 25. Ng4 {[%emt 0:01:50]} Qd8 {[%emt 0:03:44]} 26. Ne5 {[%emt 0:01:30]} Qc7 {[%emt 0:00:30]} 27. Qd2 {[%emt 0:01:13]} Nd5 {[%emt 0:01:26]} 28. Nxc6 {[%emt 0:00:48]} Nxc3+ {[%emt 0:00:49]} 29. Qxc3 {[%emt 0:00:07]} Bf6 {[%emt 0:00:10]} 30. Ne5 {[%emt 0:00:34]} Qxc3 {[%emt 0:00:52]} 31. bxc3 {[%emt 0:00:04]} Rfc8 {[%emt 0:01:00]} 32. Bf1 {[%emt 0:00:40]} Rb7 {[%emt 0:00:25]} 33. Kb2 {[%emt 0:00:28]} Rbc7 {[%emt 0:01:15]} 34. Bxb5 {[%emt 0:01:04]} Rb8 {[%emt 0:00:47]} 35. c4 {[%emt 0:00:07]} Rxc4 {[%emt 0:00:42]} 36. Kc1 {[%emt 0:00:49]} Rc5 {[%emt 0:01:19]} 37. Nd7 {[%emt 0:00:43]} Rcxb5 {[%emt 0:05:08]} 38. Nxb8 {[%emt 0:00:05]} Rxb8 {[%emt 0:00:04]} 39. Re4 {[%emt 0:00:34]} g6 {[%emt 0:01:46]} 40. Rxa4 {[%emt 0:00:00]} Rb5 {[%emt 0:00:00]} 41. Rgg4 {[%emt 0:04:14]} Bc3 42. Rgc4 {[%emt 0:02:33]} Bb2+ {[%emt 0:01:54]} 43. Kd2 {[%emt 0:00:35]} Rf5 {[%emt 0:00:19]} 44. f3 {[%emt 0:01:51]} Kg7 {[%emt 0:00:22]} 45. c3 {[%emt 0:00:57]} 1-0

[Event "WYCC 2018 G14"]
[Site "Halkidiki"]
[Date "2018.10.24"]
[Round "6"]
[White "Sleurs, Juliette"]
[Black "Krasteva, Beloslava"]
[Result "0-1"]
[ECO "B51"]
[WhiteElo "1812"]
[BlackElo "2089"]
[Annotator "NA"]
[PlyCount "138"]
[EventDate "2018.10.20"]
[EventType "swiss"]
[EventCountry "GRE"]
[SourceTitle "playchess.com"]
[Source "ChessBase"]
[SourceQuality "1"]
[TimeControl "40/5400+30:1800+30"]

1. e4 {[%emt 0:00:00]} c5 {[%emt 0:00:00]} 2. Nf3 {[%emt 0:00:00]} d6 {[%emt 0:00:00]} 3. Bb5+ {[%emt 0:00:00]} Nd7 {[%emt 0:00:00]} 4. d4 {[%emt 0:00:00]} cxd4 {[%emt 0:00:24]} 5. Qxd4 {[%emt 0:00:03]} a6 {[%emt 0:00:13]} 6. Bxd7+ {[%emt 0:00:29]} Bxd7 {[%emt 0:00:18]} 7. c4 {[%emt 0:00:59]} Nf6 {[%emt 0:01:09]} 8. Nc3 {[%emt 0:00:16]} e6 {[%emt 0:01:45]} 9. O-O {[%emt 0:00:34]} Be7 {[%emt 0:01:02]} 10. a4 {[%emt 0:12:50]} O-O {[%emt 0:04:47]} 11. b3 {[%emt 0:05:30]} b5 {[%emt 0:13:53]} 12. axb5 {[%emt 0:06:06]} axb5 {[%emt 0:01:05]} 13. Rxa8 {[%emt 0:01:26]} Qxa8 {[%emt 0:00:13]} 14. cxb5 {[%emt 0:02:54]} Qb7 {[%emt 0:05:23]} 15. Ba3 {[%emt 0:22:14]} Bxb5 {[%emt 0:04:20]} 16. Nxb5 {[%emt 0:02:51]} Qxb5 {[%emt 0:00:07]} 17. Bxd6 {[%emt 0:01:26]} Bxd6 {[%emt 0:09:51]} 18. Qxd6 {[%emt 0:00:55]} Nxe4 {[%emt 0:00:19]} 19. Qe5 {[%emt 0:03:39]} Qxe5 {[%emt 0:01:48]} 20. Nxe5 {[%emt 0:00:33]} Nd2 {[%emt 0:00:27]} 21. Rd1 {[%emt 0:00:47]} Nxb3 {[%emt 0:00:36]} 22. Rd7 {[%emt 0:10:08]} Rc8 {[%emt 0:10:18]} 23. g3 {[%emt 0:01:54]} f6 {[%emt 0:00:23]} 24. Nf3 {[%emt 0:01:41]} Nc5 {[%emt 0:00:51]} 25. Ra7 {[%emt 0:03:19]} e5 {[%emt 0:01:36]} 26. h4 {[%emt 0:06:01]} Nd3 {[%emt 0:05:29]} 27. Ra1 {[%emt 0:06:06]} Rc1+ {[%emt 0:08:51]} 28. Rxc1 {[%emt 0:00:09]} Nxc1 {[%emt 0:00:03]} 29. Nd2 {[%emt 0:02:50]} Kf7 {[%emt 0:00:26]} 30. f3 {[%emt 0:01:09]} Ne2+ {[%emt 0:03:03]} 31. Kf2 {[%emt 0:00:07]} Nd4 {[%emt 0:00:11]} 32. Ke3 {[%emt 0:02:07]} Ke6 {[%emt 0:00:37]} 33. g4 {[%emt 0:01:11]} f5 {[%emt 0:02:58]} 34. gxf5+ {[%emt 0:02:28]} Nxf5+ {[%emt 0:00:20]} 35. Ke4 {[%emt 0:00:06]} Nxh4 {[%emt 0:00:21]} 36. f4 {[%emt 0:01:04]} exf4 {[%emt 0:00:47]} 37. Kxf4 {[%emt 0:00:04]} Ng6+ {[%emt 0:00:10]} 38. Kg5 {[%emt 0:00:38]} Ne5 {[%emt 0:00:14]} 39. Ne4 {[%emt 0:00:54]} h6+ {[%emt 0:00:14]} 40. Kh5 {[%emt 0:00:00]} Kf7 {[%emt 0:00:00]} 41. Nd6+ {[%emt 0:05:01]} Kg8 {[%emt 0:03:07]} 42. Nf5 {[%emt 0:02:08]} Kh7 {[%emt 0:00:20]} 43. Ng3 {[%emt 0:03:57]} g6+ {[%emt 0:00:29]} 44. Kh4 {[%emt 0:00:07]} Kg7 {[%emt 0:01:23]} 45. Ne4 {[%emt 0:01:12]} Nd7 {[%emt 0:00:13]} 46. Nd6 {[%emt 0:03:54]} Nf6 {[%emt 0:00:26]} 47. Nc4 {[%emt 0:01:59]} g5+ {[%emt 0:00:11]} 48. Kg3 {[%emt 0:00:25]} Kg6 {[%emt 0:00:33]} 49. Ne3 {[%emt 0:00:48]} h5 {[%emt 0:00:40]} 50. Nc4 {[%emt 0:01:57]} h4+ {[%emt 0:02:32]} 51. Kh3 {[%emt 0:00:19]} Kh5 {[%emt 0:00:11]} 52. Ne3 {[%emt 0:01:59]} g4+ {[%emt 0:00:10]} 53. Kg2 {[%emt 0:00:15]} Ne4 {[%emt 0:00:48]} 54. Kh2 {[%emt 0:01:16]} Kg5 {[%emt 0:00:52]} 55. Kg2 {[%emt 0:00:44]} Nc5 {[%emt 0:03:50]} 56. Nd5 {[%emt 0:00:34]} Nd3 {[%emt 0:00:42]} 57. Ne3 {[%emt 0:01:05]} Nf4+ {[%emt 0:00:32]} 58. Kf2 {[%emt 0:00:18]} h3 {[%emt 0:01:57]} 59. Kg3 {[%emt 0:00:24]} Nh5+ {[%emt 0:00:38]} 60. Kh2 {[%emt 0:00:24]} Kf4 {[%emt 0:00:53]} 61. Nf1 {[%emt 0:00:50]} Nf6 {[%emt 0:00:47]} 62. Ng3 {[%emt 0:00:47]} Kf3 {[%emt 0:01:26]} 63. Nf5 {[%emt 0:00:46]} Ne4 {[%emt 0:00:53]} 64. Nd4+ {[%emt 0:05:50]} Kf2 {[%emt 0:00:20]} 65. Nf5 {[%emt 0:00:13]} Nd2 {[%emt 0:01:22]} 66. Kh1 {[%emt 0:03:02]} g3 {[%emt 0:00:35]} 67. Nxg3 {[%emt 0:00:26]} Kxg3 {[%emt 0:00:07]} 68. Kg1 {[%emt 0:00:05]} Ne4 {[%emt 0:00:06]} 69. Kh1 {[%emt 0:00:11]} Nf2+ {[%emt 0:00:06]} 0-1

[Event "WYCC 2018 G14"]
[Site "Halkidiki"]
[Date "2018.10.24"]
[Round "6"]
[White "Obada, Ema"]
[Black "Stepanyan, Eva"]
[Result "0-1"]
[ECO "B43"]
[WhiteElo "1811"]
[BlackElo "1981"]
[Annotator "NA"]
[PlyCount "92"]
[EventDate "2018.10.20"]
[EventType "swiss"]
[EventCountry "GRE"]
[SourceTitle "playchess.com"]
[Source "ChessBase"]
[SourceQuality "1"]
[TimeControl "40/5400+30:1800+30"]

1. e4 {[%emt 0:00:00]} c5 {[%emt 0:00:00]} 2. Nc3 {[%emt 0:00:00]} e6 {[%emt 0:00:51]} 3. Nf3 {[%emt 0:00:00]} a6 {[%emt 0:01:16]} 4. d4 {[%emt 0:00:00]} cxd4 {[%emt 0:00:07]} 5. Nxd4 {[%emt 0:00:00]} Qc7 {[%emt 0:01:04]} 6. Bd3 {[%emt 0:02:05]} Nf6 {[%emt 0:03:08]} 7. O-O {[%emt 0:03:21]} Be7 {[%emt 0:02:29]} 8. Qe2 $11 {[%emt 0:03:20] LiveBook: 24 Games} d6 {[%emt 0:00:32]} 9. Bd2 {[%emt 0:01:31]} Nbd7 {[%emt 0:01:32]} 10. Kh1 {[%emt 0:01:50]} b5 {[%emt 0:02:41]} 11. a3 {[%emt 0:05:24]} Bb7 {[%emt 0:01:30]} 12. Rae1 {[%emt 0:06:40]} O-O {[%emt 0:03:26]} 13. f4 {[%emt 0:01:48]} Nc5 {[%emt 0:03:57]} 14. Rf3 {[%emt 0:05:06]} Rfe8 {[%emt 0:14:03]} 15. Rg3 {[%emt 0:06:48]} Rad8 {[%emt 0:11:25]} 16. b4 {[%emt 0:10:13]} Nxd3 {[%emt 0:07:05]} 17. cxd3 {[%emt 0:00:12]} Kh8 {[%emt 0:06:35]} 18. Rf1 {[%emt 0:02:55]} Bf8 {[%emt 0:06:01]} 19. Nf3 {[%emt 0:07:35]} g6 {[%emt 0:07:05]} 20. Rh3 {[%emt 0:01:33]} Bg7 {[%emt 0:01:55]} 21. Qf2 {[%emt 0:02:41]} e5 {[%emt 0:05:28]} 22. fxe5 {[%emt 0:11:07]} dxe5 {[%emt 0:00:17]} 23. Ng5 {[%emt 0:00:22]} Kg8 {[%emt 0:03:21]} 24. Rf3 {[%emt 0:01:46]} Rd6 {[%emt 0:01:17]} 25. Qh4 {[%emt 0:00:57]} h6 {[%emt 0:01:21]} 26. Nh3 {[%emt 0:01:09]} g5 {[%emt 0:03:26]} 27. Nxg5 {[%emt 0:00:35]} hxg5 {[%emt 0:00:08]} 28. Bxg5 {[%emt 0:01:46]} Nh7 {[%emt 0:03:18]} 29. Rxf7 {[%emt 0:01:27]} Qxc3 {[%emt 0:01:14]} 30. Bh6 {[%emt 0:07:25]} Bxh6 {[%emt 0:03:02]} 31. Qg4+ {[%emt 0:00:23]} Ng5 {[%emt 0:01:18]} 32. h4 {[%emt 0:01:27]} Bc8 {[%emt 0:01:48]} 33. Qh5 {[%emt 0:04:24]} Nh7 {[%emt 0:01:23]} 34. Rxh7 {[%emt 0:02:08]} Kxh7 {[%emt 0:00:04]} 35. Qxe8 {[%emt 0:00:30]} Qc6 {[%emt 0:00:59]} 36. Qxe5 {[%emt 0:01:12]} Qd7 {[%emt 0:01:04]} 37. Qh5 {[%emt 0:01:22]} Rg6 {[%emt 0:00:21]} 38. Rc1 {[%emt 0:00:57]} Rg7 {[%emt 0:01:21]} 39. d4 {[%emt 0:03:54]} Qg4 {[%emt 0:00:42]} 40. Qxg4 {[%emt 0:00:00]} Bxg4 {[%emt 0:00:00]} 41. Rc6 {[%emt 0:00:42]} Rf7 {[%emt 0:08:33]} 42. Rxa6 {[%emt 0:01:51]} Rf1+ {[%emt 0:00:49]} 43. Kh2 {[%emt 0:00:05]} Bf4+ {[%emt 0:00:15]} 44. g3 {[%emt 0:00:07]} Rf2+ {[%emt 0:00:20]} 45. Kg1 {[%emt 0:00:17]} Be3 {[%emt 0:00:15]} 46. Ra7+ {[%emt 0:01:20]} Rf7+ {[%emt 0:00:40]} 0-1